bitfinex/quotes_ETHUSD_20260209
["timestamp","ask_amount","ask_price","bid_price","bid_amount"]
[1770660355536,1.59145466,2137.3,2135.9,0.1024]
[1770660355846,1.1696675,2137.4,2135.9,0.1024]
[1770660356564,2.76097591,2137.7,2136.1,1.78389515]
[1770660356764,1.59145466,2137.4,2136.1,0.1024]
[1770660357838,1.59145466,2137.2,2136.0,1.17041198]
[1770660358735,1.16980955,2137.1,2135.7,0.1024]
[1770660359134,0.06082867,2136.6,2135.6,1.1706312]
[1770660359330,1.59145466,2137.0,2135.6,1.1706312]
[1770660359740,1.16980955,2137.1,2135.6,2.85212635]
[1770660359938,1.16980955,2137.1,2135.7,1.68149515]
[1770660360168,1.16979816,2137.2,2135.7,1.68149515]
[1770660360535,1.59145466,2137.1,2135.6,1.1706312]
[1770660360735,7.94889182,2137.3,2135.6,1.1706312]
[1770660360736,3.27,2137.3,2135.6,2.85212635]
[1770660360984,1.16979487,2137.2,2135.6,2.85212635]
[1770660361188,2.76124953,2137.2,2135.6,2.85212635]
[1770660361472,1.65228333,2137.1,2135.6,1.1706312]
[1770660362335,1.65228333,2137.1,2136.2,0.0011]
[1770660362678,1.65228333,2137.1,2134.5,1.68149515]
[1770660362679,1.59145466,2136.3,2134.5,1.68149515]
[1770660362964,1.1703024,2136.2,2136.0,0.0011]
[1770660363133,1.59145466,2136.1,2135.1,0.0011]
[1770660363763,4.44028577,2136.3,2135.1,0.0011]
[1770660364447,1.59145466,2136.0,2135.1,0.0011]
[1770660364938,1.17045214,2136.0,2135.1,0.0011]
[1770660366667,1.59145466,2135.9,2135.1,0.0011]
[1770660366868,1.17052158,2135.8,2135.1,0.0011]
[1770660367967,2.76197624,2135.8,2135.1,0.0011]
[1770660368142,2.82280491,2135.8,2135.1,0.0011]
[1770660368346,2.76197624,2135.8,2135.1,0.0011]
[1770660368749,2.82280491,2135.8,2135.1,0.0011]
[1770660369144,2.76197624,2135.8,2135.1,0.0011]
[1770660369349,1.17052158,2135.8,2135.1,0.0011]
[1770660370179,2.76197624,2135.8,2135.1,0.0011]
[1770660370780,1.59145466,2135.7,2135.1,0.0011]
[1770660370977,4.68167827,2136.0,2135.1,0.0011]
[1770660371180,1.17041198,2136.0,2135.1,0.0011]
[1770660371768,1.59145466,2135.9,2135.1,0.0011]
[1770660371967,1.65228333,2135.9,2135.1,0.0011]
[1770660372368,1.65228333,2135.7,2135.1,0.0011]
[1770660372955,1.59145466,2135.3,2134.4,1.17128576]
[1770660373173,1.59145466,2135.3,2134.4,1.17128452]
[1770660373371,1.1708505,2135.2,2134.3,0.0011]
[1770660373683,6.27332178,2136.0,2134.3,1.68259515]
[1770660373895,1.59145466,2135.9,2134.3,1.68259515]
[1770660374455,1.17041198,2136.0,2134.3,1.68259515]
[1770660374687,1.17041198,2136.0,2134.5,1.68149515]
[1770660375188,1.17041198,2136.0,2134.5,1.68259515]
[1770660375482,0.0012,2135.8,2134.6,1.17117961]
[1770660378488,0.0012,2135.8,2134.7,3.06545837]
[1770660378788,1.17012076,2136.6,2135.1,3.29902867]
[1770660378982,1.17012076,2136.6,2135.2,3.271]
[1770660379380,1.17012076,2136.6,2135.3,1.17079567]
[1770660379695,4.68107959,2137.0,2135.4,3.11785446]
[1770660379696,1.16996354,2136.9,2135.4,3.11785446]
[1770660380303,3.23775791,2136.8,2135.3,4.44179567]
[1770660381489,1.17002854,2136.7,2135.3,4.44179567]
[1770660381996,4.40778645,2136.7,2135.3,4.44179567]
[1770660382865,3.23775791,2136.1,2134.6,4.68458704]
[1770660383072,3.23775791,2136.1,2135.1,1.17087705]
[1770660383292,1.17041198,2136.0,2135.2,1.17080554]
[1770660383698,4.74161979,2136.4,2135.2,1.17080554]
[1770660383699,1.17019284,2136.4,2135.2,1.17080554]
[1770660383991,3.23775791,2136.3,2135.2,1.17080554]
[1770660384605,1.17019284,2136.4,2135.2,1.17080554]
[1770660384770,4.40795075,2136.4,2135.2,1.17080554]
[1770660385472,3.29858658,2136.3,2134.9,1.17101503]
[1770660386268,3.23775791,2136.3,2134.9,1.17101503]
[1770660387271,3.23775791,2136.3,2135.4,0.0011]
[1770660387466,1.1703024,2136.2,2135.4,0.0011]
[1770660389379,4.40806031,2136.2,2135.4,0.0011]
[1770660389581,3.23775791,2136.0,2135.4,0.0011]
[1770660389791,1.06784632,2136.1,2134.8,1.17102698]
[1770660389792,1.06792405,2135.9,2134.8,1.17102698]
[1770660389975,3.23775791,2135.8,2134.8,1.17102698]
[1770660390676,4.48728629,2136.1,2134.8,1.17105149]
[1770660390877,1.00712168,2136.0,2134.8,1.17105149]
[1770660391204,4.24487959,2135.9,2134.8,1.17105149]
[1770660391400,1.00751325,2135.8,2134.8,1.17105149]
[1770660391579,1.17057639,2135.7,2134.5,1.17233448]
[1770660392671,1.24952838,2136.1,2134.5,1.17233448]
[1770660392875,4.40816989,2136.0,2134.5,1.17233448]
[1770660393106,4.24577005,2135.9,2134.5,1.17233448]
[1770660393305,3.23775791,2135.9,2134.5,1.17233448]
[1770660393687,1.17057639,2135.7,2134.5,1.17233448]
[1770660395900,4.68230556,2135.8,2134.5,1.17233448]
[1770660396099,1.17052158,2135.8,2134.5,4.29018894]
[1770660397411,3.23775791,2135.7,2134.5,1.17233448]
[1770660398507,1.1706312,2135.6,2134.5,1.17233448]
[1770660398910,3.23775791,2135.5,2134.5,1.17233448]
[1770660399788,3.23775791,2135.5,2134.7,0.0011]
[1770660400416,1.1718312,2135.6,2134.7,3.11895446]
[1770660400417,0.0012,2135.6,2134.7,3.11895446]
[1770660400714,0.0012,2135.6,2134.7,0.0011]
[1770660400917,3.23895791,2135.6,2134.7,0.0011]
[1770660401910,0.0012,2135.6,2134.7,0.0011]
[1770660402101,0.0012,2135.6,2134.7,3.11895446]
[1770660402302,0.0012,2135.6,2134.9,3.11785446]
[1770660402616,1.17013807,2136.5,2135.1,1.17090534]
[1770660402813,3.23775791,2136.3,2135.1,1.17090534]
[1770660403620,3.2732,2136.6,2135.2,3.11785446]
[1770660403926,3.2732,2136.6,2135.6,3.11785446]
[1770660403927,0.0012,2136.6,2135.6,3.11785446]
[1770660404101,0.0012,2136.6,2135.7,3.272]
[1770660404623,0.0012,2136.6,2135.9,1.17046678]
[1770660406425,4.03333229,2136.6,2135.6,1.17059277]
[1770660406612,5.26309903,2136.5,2135.2,7.95538679]
[1770660406811,4.09296096,2136.3,2135.2,7.95538679]
[1770660407135,1.17013807,2136.5,2135.3,0.1024]
[1770660407422,1.17130988,2136.6,2135.3,0.1024]
[1770660407610,1.17130988,2136.6,2135.3,4.094213]
[1770660407923,1.17128556,2136.6,2135.3,4.094213]
[1770660408107,0.0012,2136.6,2135.3,4.094213]
[1770660408638,0.0012,2136.6,2135.4,1.17074084]
[1770660409641,5.0988009,2136.5,2135.4,1.17074084]
[1770660409873,0.0012,2136.6,2135.5,4.094213]
[1770660410134,1.17106467,2137.0,2135.8,3.991813]
[1770660410339,1.17106467,2137.0,2135.9,3.271]
[1770660410840,0.0012,2137.0,2136.0,1.17041198]
[1770660411154,4.03333229,2137.0,2136.0,1.17041198]
[1770660411945,0.0012,2137.0,2136.0,1.17041198]
[1770660412351,0.0012,2137.0,2136.1,3.991813]
[1770660412549,10.37335137,2137.8,2136.3,14.52880763]
[1770660412550,5.20158649,2137.8,2136.3,14.52880763]
[1770660412910,5.20158649,2137.8,2136.4,1.17019284]
[1770660413131,0.0012,2136.8,2136.5,3.271]
[1770660413550,0.0012,2136.8,2135.9,4.68182802]
[1770660413726,4.03213229,2137.4,2136.3,1.17024138]
[1770660414018,4.09296096,2137.3,2136.2,1.17027869]
[1770660414218,4.03213229,2137.3,2136.3,1.1702465]
[1770660414415,4.03213229,2137.7,2136.3,1.1702465]
[1770660414655,4.03213229,2137.5,2136.3,1.1702465]
[1770660414841,5.20194184,2137.1,2135.8,3.271]
[1770660415956,4.09296096,2137.0,2135.8,3.271]
[1770660416254,4.03213229,2137.0,2135.7,3.3734]
[1770660416843,1.16953592,2137.6,2136.0,4.3277833]
[1770660417455,4.09296096,2137.5,2136.0,4.094213]
[1770660418443,4.09296096,2137.1,2135.9,1.17046678]
[1770660418619,4.03213229,2137.1,2135.9,1.17046678]
[1770660419139,4.03213229,2137.1,2135.7,7.95328988]
[1770660419140,4.03213229,2136.8,2135.7,4.44153719]
[1770660420334,4.03213229,2136.4,2135.4,1.1707375]
[1770660420534,5.20199658,2137.0,2135.7,1.17057374]
[1770660420736,5.2015588,2137.8,2136.0,0.1024]
[1770660420938,4.03213229,2137.7,2136.2,0.1024]
[1770660421144,1.16953592,2137.6,2136.3,1.17024762]
[1770660422462,4.67745736,2138.0,2136.5,3.991813]
[1770660422650,5.26227807,2138.0,2136.6,3.27]
[1770660423161,5.2014494,2138.0,2136.7,1.17002854]
[1770660423371,4.73809714,2138.2,2136.7,5.16184154]
[1770660423372,4.676884,2138.2,2136.7,5.16184154]
[1770660424033,0.06082867,2138.0,2136.7,1.17002854]
[1770660424250,4.09296096,2138.1,2136.7,1.17002854]
[1770660424458,1.16920774,2138.2,2136.8,3.991813]
[1770660425357,1.16920774,2138.2,2136.9,1.16991904]
[1770660425567,1.16920774,2138.2,2136.9,5.16173204]
[1770660425759,0.0012,2137.8,2136.9,5.16173204]
[1770660426962,0.0012,2137.8,2136.9,1.16991904]
[1770660427158,0.0012,2137.8,2136.6,7.95032349]
[1770660427159,1.17062651,2137.8,2136.7,1.17002854]
[1770660427458,5.26358747,2137.8,2136.7,1.17002854]
[1770660427644,4.09296096,2137.6,2136.6,4.44007273]
[1770660427844,1.17062651,2137.8,2136.6,4.44007273]
[1770660428558,1.23145518,2137.8,2136.6,4.44007273]
[1770660428944,1.17062651,2137.8,2136.6,4.44007273]
[1770660429332,0.0012,2137.8,2136.6,4.44007273]
[1770660430444,0.06202867,2137.8,2136.6,4.44007273]
[1770660430643,4.09416096,2137.8,2136.6,4.44007273]
[1770660431053,4.09416096,2137.8,2136.6,1.17007273]
[1770660431347,1.16948121,2137.7,2136.4,4.68033323]
[1770660431854,1.16948121,2137.7,2136.4,8.67214623]
[1770660432049,5.2016135,2137.7,2136.4,4.68033323]
[1770660432449,4.03213229,2137.4,2136.4,1.17019284]
[1770660432957,4.03213229,2137.4,2136.2,0.0011]
[1770660432958,4.03213229,2137.0,2136.2,0.0011]
[1770660433159,1.31035705,2137.6,2136.2,0.0011]
[1770660433160,2.47983826,2137.7,2136.3,1.17022235]
[1770660433478,4.03213229,2137.2,2136.2,1.17136887]
[1770660433650,5.03786459,2137.1,2136.2,0.0011]
[1770660433850,4.03213229,2137.1,2136.2,0.0011]
[1770660434044,4.03213229,2137.1,2136.2,1.17139111]
[1770660434246,4.03213229,2137.1,2136.2,0.0011]
[1770660434553,4.03213229,2136.9,2136.2,0.0011]
[1770660434854,4.03213229,2136.6,2135.7,1.1705753]
[1770660435061,4.03213229,2136.5,2135.6,1.1705865]
[1770660435245,1.17019284,2136.4,2135.4,4.68281404]
[1770660435441,1.17019284,2136.4,2135.4,1.17074084]
[1770660437167,1.24952838,2137.2,2135.5,4.66394221]
[1770660437364,1.16980955,2137.1,2135.8,1.17052158]
[1770660437573,1.1697815,2137.2,2135.8,1.17052158]
[1770660437778,1.1697815,2137.2,2135.8,5.73206379]
[1770660438072,1.1697815,2137.2,2136.4,0.0011]
[1770660438273,1.16971155,2137.3,2136.4,0.0011]
[1770660439174,1.16971155,2137.3,2136.1,0.0011]
[1770660439175,4.66385736,2136.9,2136.1,0.0011]
[1770660439373,4.68033323,2136.7,2136.1,0.0011]
[1770660441752,9.34419059,2136.7,2136.1,0.0011]
[1770660442785,9.34419059,2136.7,2135.2,1.17080659]
[1770660442786,4.66385736,2136.3,2135.2,1.17080659]
[1770660443483,1.1703024,2136.2,2135.1,4.68460008]
[1770660443661,1.23113107,2136.2,2135.1,1.17200534]
[1770660443861,4.66385736,2135.8,2135.1,0.0011]
[1770660444089,0.06082867,2135.7,2135.1,0.0011]
[1770660444289,7.99468603,2135.7,2135.1,0.0011]
[1770660445169,7.93385736,2135.7,2135.1,0.0011]
[1770660445565,9.10448704,2135.7,2135.1,0.0011]
[1770660446169,4.44058356,2135.7,2135.1,0.0011]
[1770660447080,1.17019284,2136.4,2135.1,0.0011]
[1770660447275,4.44019284,2136.4,2135.1,0.0011]
[1770660448160,3.27,2136.4,2135.1,4.3701494]
[1770660448572,4.72468603,2136.9,2135.1,4.3701494]
[1770660448573,1.16997907,2136.8,2135.4,4.4714494]
[1770660448893,1.16997907,2136.8,2135.2,3.271]
[1770660448894,4.66385736,2136.7,2135.2,3.271]
[1770660449063,4.66385736,2136.5,2135.2,3.271]
[1770660449259,0.06082867,2136.2,2135.1,0.0011]
[1770660449569,5.89509801,2136.0,2135.1,0.0011]
[1770660449886,4.44137148,2136.1,2135.1,0.0011]
[1770660450261,0.06082867,2136.0,2135.1,0.0011]
[1770660450590,4.72468603,2136.0,2135.1,0.0011]
[1770660450890,0.06082867,2135.8,2135.6,0.0011]
[1770660451095,4.66385736,2135.7,2134.7,0.0011]
[1770660451273,0.06082867,2135.1,2134.5,0.0011]
[1770660451463,1.17092697,2135.1,2134.5,0.0011]
[1770660451664,9.34572448,2136.0,2134.5,0.0011]
[1770660451864,0.06082867,2135.9,2134.5,0.0011]
[1770660453590,1.1706312,2135.6,2134.5,0.0011]
[1770660453789,7.99568603,2135.5,2134.5,0.0011]
[1770660453966,7.93485736,2135.5,2134.5,0.0011]
[1770660456294,1.17074084,2135.4,2134.5,0.0011]
[1770660456594,4.44169123,2135.5,2134.5,0.0011]
[1770660456785,1.17052158,2135.8,2134.5,0.0011]
[1770660457498,1.17052158,2135.8,2134.5,4.3701494]
[1770660458285,4.68208633,2135.9,2134.6,1.17117961]
[1770660459068,4.72468603,2135.8,2134.6,1.17117961]
[1770660459969,4.68208633,2135.9,2134.6,1.17117961]
[1770660460178,4.68208633,2135.9,2134.5,4.68581844]
[1770660461897,0.06082867,2135.6,2134.5,4.68581844]
[1770660462282,1.1706312,2135.6,2134.5,0.0011]
[1770660462490,1.17046678,2135.9,2134.5,0.0011]
[1770660462993,0.06082867,2135.8,2134.5,0.0011]
[1770660463192,4.72468603,2135.8,2134.5,0.0011]
[1770660463575,4.72468603,2135.8,2134.7,0.0011]
[1770660463917,4.66385736,2135.3,2134.7,0.0011]
[1770660464074,7.93585736,2135.3,2134.7,0.0011]
[1770660464395,1.1708505,2135.2,2134.7,0.0011]
[1770660464777,4.44279952,2135.3,2134.7,0.0011]
[1770660465501,3.272,2135.3,2134.7,0.0011]
[1770660466690,4.44279879,2135.3,2134.7,0.0011]
[1770660466874,3.272,2135.3,2134.7,0.0011]
[1770660467377,4.44282956,2135.3,2134.7,0.0011]
[1770660467598,3.272,2135.3,2134.7,0.0011]
[1770660468272,1.17180036,2135.7,2134.7,0.0011]
[1770660468601,0.0012,2135.7,2134.7,0.0011]
[1770660469521,0.0012,2135.7,2134.7,4.66894379]
[1770660470502,0.0012,2135.7,2134.8,1.17106988]
[1770660472704,5.74932266,2135.6,2134.7,0.0011]
[1770660473002,4.68004137,2135.3,2134.7,0.0011]
[1770660473205,1.00845262,2135.2,2134.7,0.0011]
[1770660473414,5.68849399,2135.2,2134.7,0.0011]
[1770660473710,3.272,2135.3,2134.7,0.0011]
[1770660473905,1.00860695,2135.2,2134.7,0.0011]
[1770660474207,1.00860695,2135.1,2134.7,0.0011]
[1770660474504,7.95204137,2135.3,2134.7,0.0011]
[1770660474699,2.17929722,2135.2,2134.7,0.0011]
[1770660474885,1.00844672,2135.1,2134.7,0.0011]
[1770660475272,1.1708505,2135.2,2134.7,0.0011]
[1770660475472,3.272,2135.3,2134.9,0.0011]
[1770660475791,4.44280532,2135.3,2134.7,0.0011]
[1770660476783,4.50363399,2135.3,2134.7,0.0011]
[1770660476990,4.50363399,2135.3,2134.5,0.0011]
[1770660476991,0.06082867,2135.1,2134.5,0.0011]
[1770660477580,4.74087004,2135.1,2134.5,0.0011]
[1770660477779,1.00819828,2135.0,2134.5,0.0011]
[1770660478082,4.74087004,2135.1,2134.5,0.0011]
[1770660478284,1.00841895,2135.0,2134.5,0.0011]
[1770660478480,4.74087004,2135.1,2134.5,0.0011]
[1770660478679,1.17101503,2134.9,2134.5,0.0011]
[1770660479813,1.17101503,2134.9,2134.3,0.0011]
[1770660479814,4.68004137,2134.7,2134.3,0.0011]
[1770660480021,3.272,2134.8,2134.3,0.0011]
[1770660480222,1.00898669,2134.7,2134.3,0.0011]
[1770660480538,4.68004137,2134.4,2133.8,0.0011]
[1770660480680,0.06082867,2134.7,2133.8,0.0011]
[1770660480681,4.44426757,2134.5,2133.8,0.0011]
[1770660480881,1.17115908,2134.7,2133.8,0.0011]
[1770660481313,1.00879115,2134.6,2133.8,0.0011]
[1770660481486,1.17115908,2134.7,2133.8,0.0011]
[1770660481690,1.00877631,2134.6,2133.8,0.0011]
[1770660481910,1.17115908,2134.7,2133.8,0.0011]
[1770660482208,1.00877652,2134.6,2133.8,0.0011]
[1770660482405,1.17115908,2134.7,2133.8,0.0011]
[1770660482783,1.00834291,2134.6,2133.8,0.0011]
[1770660482982,1.17115908,2134.7,2133.8,0.0011]
[1770660483315,1.06917495,2134.6,2133.8,0.0011]
[1770660483615,1.00834628,2134.5,2133.8,0.0011]
[1770660483814,0.06082867,2134.6,2133.8,0.0011]
[1770660484125,5.68794367,2134.5,2133.8,0.0011]
[1770660484284,5.68794367,2134.5,2133.6,0.0011]
[1770660484285,0.06082867,2134.0,2133.6,0.0011]
[1770660484486,0.06082867,2133.8,2133.2,0.0011]
[1770660484789,4.74087004,2133.6,2132.5,0.0011]
[1770660484990,0.06082867,2133.2,2132.5,0.0011]
[1770660485190,3.273,2133.1,2132.5,0.0011]
[1770660485884,7.95304137,2133.1,2132.3,0.0011]
[1770660486085,4.74087004,2133.0,2132.3,0.0011]
[1770660486304,0.06082867,2132.8,2132.3,0.0011]
[1770660486617,4.74087004,2132.6,2131.7,0.1399138]
[1770660486783,4.44533294,2132.5,2131.7,0.1399138]
[1770660486983,4.50616161,2132.5,2131.7,0.1399138]
[1770660487410,9.18620298,2132.5,2131.7,0.1399138]
[1770660487580,0.06082867,2132.3,2131.7,0.1399138]
[1770660488311,4.74087004,2132.3,2131.4,0.0011]
[1770660488689,4.74087004,2132.3,2131.1,0.0011]
[1770660488690,1.17282792,2131.6,2131.1,0.0011]
[1770660488885,0.06082867,2131.2,2130.9,0.0011]
[1770660489112,1.17282792,2131.6,2130.0,1.17480892]
[1770660489323,1.17282792,2131.6,2130.1,4.66784379]
[1770660489324,3.274,2131.5,2130.1,4.66784379]
[1770660489621,3.274,2131.5,2130.3,4.66784379]
[1770660489985,10.44292333,2132.2,2130.4,4.66784379]
[1770660489986,1.17266288,2131.9,2130.4,4.66784379]
[1770660490315,4.44666288,2131.9,2130.4,4.66784379]
[1770660490731,4.44666288,2131.9,2130.5,1.17343346]
[1770660490889,4.44666288,2131.9,2130.6,4.66784379]
[1770660491088,4.4466725,2131.9,2130.6,4.66784379]
[1770660491610,9.18754254,2131.9,2130.5,1.17343346]
[1770660492015,4.74087004,2131.7,2130.5,1.17343346]
[1770660492194,0.06082867,2131.1,2130.0,0.0011]
[1770660492397,3.275,2131.0,2130.0,1.17478317]
[1770660492713,3.275,2131.0,2130.0,0.0011]
[1770660492913,4.44819887,2131.0,2130.0,0.0011]
[1770660493088,0.06082867,2130.9,2130.0,0.0011]
[1770660493291,4.44819887,2131.0,2130.0,0.0011]
[1770660493920,3.275,2131.0,2130.0,0.0011]
[1770660494086,4.44817461,2131.0,2130.0,0.0011]
[1770660494411,4.44816117,2131.0,2130.0,0.0011]
[1770660494604,4.68004137,2130.9,2130.0,0.0011]
[1770660494918,4.68004137,2130.6,2129.5,1.17397346]
[1770660495290,1.17326825,2130.8,2129.5,1.17397346]
[1770660496021,1.23409692,2130.8,2129.5,1.17397346]
[1770660496523,1.17326825,2130.8,2129.5,5.9757749]
[1770660497014,4.69307302,2130.9,2129.5,5.9757749]
[1770660497849,4.75390169,2130.9,2129.5,5.9757749]
[1770660498127,9.69437789,2130.9,2129.5,1.17397346]
[1770660498342,0.06082867,2130.7,2129.5,1.17397346]
[1770660498514,0.06082867,2130.6,2129.5,1.17397346]
[1770660498705,5.00130487,2130.6,2129.5,1.17397346]
[1770660499042,1.17343346,2130.5,2129.4,4.69593801]
[1770660499718,4.69352143,2130.6,2129.4,4.69593801]
[1770660499903,1.17341682,2130.6,2129.4,4.69593801]
[1770660500100,3.278,2130.6,2129.4,9.8108289]
[1770660500327,3.278,2130.6,2129.7,0.001]
[1770660501314,4.45138212,2130.6,2129.7,0.001]
[1770660501513,4.45137965,2130.6,2129.7,0.001]
[1770660501816,5.27909299,2130.5,2129.7,0.001]
[1770660502331,0.06082867,2130.3,2129.7,0.001]
[1770660502638,4.51220832,2130.6,2129.7,0.001]
[1770660503009,9.73047264,2130.6,2129.7,0.001]
[1770660503331,4.45137965,2130.6,2129.7,0.001]
[1770660503513,4.51220832,2130.6,2129.7,0.001]
[1770660503927,4.45137965,2130.6,2129.7,0.001]
[1770660505909,4.45139503,2130.6,2129.7,0.001]
[1770660506327,9.66965935,2130.6,2129.7,0.001]
[1770660506536,0.06082867,2130.4,2129.7,0.001]
[1770660506746,5.27909299,2130.4,2129.7,0.001]
[1770660506916,5.21826432,2130.4,2129.7,0.001]
[1770660507234,4.5122237,2130.6,2129.7,0.001]
[1770660507235,4.45139503,2130.6,2129.7,0.001]
[1770660507442,1.17339503,2130.6,2129.7,0.001]
[1770660508841,6.45248802,2130.6,2129.7,0.001]
[1770660509229,1.17339503,2130.6,2129.7,0.001]
[1770660512142,4.69332733,2130.7,2129.7,0.001]
[1770660512525,0.06082867,2130.6,2129.7,0.001]
[1770660512723,4.69332733,2130.7,2129.7,0.001]
[1770660514342,9.97242032,2130.7,2129.7,0.001]
[1770660514518,5.21826432,2130.3,2129.7,0.001]
[1770660514724,3.28,2130.2,2129.7,0.001]
[1770660514922,3.28,2130.2,2129.9,0.001]
[1770660515441,3.28,2130.2,2129.7,0.001]
[1770660515961,0.002,2130.4,2129.7,0.001]
[1770660524160,1.01361054,2130.3,2129.7,0.001]
[1770660524454,0.002,2130.4,2129.7,0.001]
[1770660524664,2.18744378,2130.3,2129.7,0.001]
[1770660524836,1.17359188,2130.3,2129.7,0.001]
[1770660525234,1.01386037,2130.2,2129.7,0.001]
[1770660525442,1.01386037,2130.1,2129.5,0.001]
[1770660525644,7.27444284,2130.3,2129.5,0.001]
[1770660525858,1.01392029,2130.2,2129.5,0.001]
[1770660526029,1.01392029,2130.1,2129.5,0.001]
[1770660526229,1.17359188,2130.3,2129.5,0.001]
[1770660526551,1.01380652,2130.2,2129.5,0.001]
[1770660526855,2.18750143,2130.1,2129.5,0.001]
[1770660527151,4.69428061,2130.3,2129.5,0.001]
[1770660527351,1.01380581,2130.2,2129.5,0.001]
[1770660527528,1.01380581,2130.1,2129.5,0.001]
[1770660527856,4.69428061,2130.3,2129.5,0.001]
[1770660528044,1.01375594,2130.2,2129.5,0.001]
[1770660528245,1.1754945,2130.4,2129.5,4.77047882]
[1770660528431,1.01370939,2130.3,2129.5,4.77047882]
[1770660528635,1.17551484,2130.4,2129.6,1.17392937]
[1770660528943,0.002,2130.4,2129.7,4.77047882]
[1770660529254,0.002,2130.2,2129.7,4.77047882]
[1770660530755,0.002,2130.2,2129.7,0.001]
[1770660531274,0.002,2130.2,2129.7,4.77047882]
[1770660532367,0.002,2130.2,2129.7,0.001]
[1770660533063,0.002,2130.2,2129.7,4.77047882]
[1770660535070,0.002,2130.2,2129.8,1.17381913]
[1770660537272,0.002,2130.2,2129.7,0.001]
[1770660539778,0.002,2130.2,2129.7,4.77047882]
[1770660540151,0.002,2130.4,2129.7,0.001]
[1770660540656,0.002,2130.4,2129.7,4.77047882]
[1770660541473,0.002,2130.4,2129.8,1.17381913]
[1770660541681,0.002,2130.4,2129.8,1.17481913]
[1770660541975,0.002,2130.0,2129.8,1.17481913]
[1770660542179,0.002,2130.4,2129.5,4.69690642]
[1770660542180,4.85332258,2130.4,2129.5,0.001]
[1770660542349,0.002,2130.2,2129.7,1.17386231]
[1770660542680,0.002,2130.2,2129.7,5.94334113]
[1770660542855,0.002,2130.2,2129.8,4.77147882]
[1770660543058,0.002,2130.4,2129.8,4.76947882]
[1770660543252,0.002,2130.4,2129.5,0.001]
[1770660543582,1.0125853,2130.3,2129.6,4.69549701]
[1770660543884,0.002,2130.4,2129.6,9.46497583]
[1770660544191,0.002,2130.4,2129.7,4.76947882]
[1770660544362,0.002,2130.4,2129.6,4.69549701]
[1770660544881,0.002,2130.6,2129.7,16.12888661]
[1770660545178,0.002,2130.6,2129.9,4.76947882]
[1770660545558,1.17514666,2131.1,2130.2,4.76947882]
[1770660545559,0.002,2131.1,2130.2,4.76947882]
[1770660545759,0.002,2131.1,2130.3,8.04947882]
[1770660545964,0.002,2131.1,2130.4,4.87187882]
[1770660546680,0.002,2131.3,2130.5,4.76947882]
[1770660546869,0.002,2131.3,2130.7,4.76947882]
[1770660547069,0.002,2131.3,2130.8,3.28]
[1770660547283,0.002,2131.3,2130.8,8.04947882]
[1770660547484,0.002,2131.3,2130.8,3.28]
[1770660547787,0.002,2131.3,2130.9,1.17321319]
[1770660548893,0.002,2131.5,2130.9,1.17321319]
[1770660549188,1.17261929,2132.0,2130.9,1.17321319]
[1770660549786,4.6902825,2132.1,2130.9,1.17321319]
[1770660550475,9.54160508,2132.1,2130.9,1.17321319]
[1770660550992,1.17238791,2132.4,2130.9,5.94269201]
[1770660551156,6.02371049,2132.4,2130.9,5.94269201]
[1770660552858,1.17236851,2132.5,2131.2,4.87187882]
[1770660553088,0.002,2132.6,2130.9,1.17321319]
[1770660553089,0.002,2132.6,2131.4,4.76947882]
[1770660553493,0.002,2132.6,2131.8,4.76947882]
[1770660553837,0.002,2132.6,2131.0,0.33526375]
[1770660553838,0.002,2132.8,2132.0,4.76947882]
[1770660553959,1.17172853,2133.6,2132.4,1.17238791]
[1770660554159,1.17371645,2133.7,2132.4,5.94186673]
[1770660554384,1.17367833,2133.7,2132.5,4.87187882]
[1770660554582,1.17367833,2133.7,2132.6,3.279]
[1770660554789,6.02500091,2133.7,2132.6,3.279]
[1770660554968,6.02500091,2133.7,2132.4,1.17238791]
[1770660555494,1.17367833,2133.7,2132.4,6.23986037]
[1770660555669,6.09899183,2133.7,2132.5,0.1024]
[1770660555864,0.002,2133.0,2132.4,4.45038791]
[1770660556378,0.002,2133.0,2132.4,4.45038405]
[1770660556587,0.002,2133.0,2132.3,1.17240181]
[1770660557268,0.002,2133.0,2132.3,1.17239633]
[1770660557619,0.002,2133.0,2132.3,1.1724387]
[1770660558100,0.002,2133.0,2131.4,6.2403554]
[1770660558101,6.09743112,2132.9,2131.4,6.2403554]
[1770660558269,6.09743112,2132.9,2131.6,3.278]
[1770660558605,4.92531804,2132.8,2131.6,3.278]
[1770660559304,5.09117912,2132.7,2130.6,0.001]
[1770660559602,5.03035045,2131.7,2130.7,1.17329063]
[1770660559898,0.06082867,2132.3,2130.6,4.69447078]
[1770660559899,5.03035045,2132.2,2130.6,1.17433811]
[1770660560076,1.17255288,2132.1,2130.7,4.69312055]
[1770660560271,4.44955288,2132.1,2130.7,4.69312055]
[1770660560506,5.03035045,2132.0,2130.7,4.69312055]
[1770660560704,5.03035045,2131.7,2130.6,0.001]
[1770660561094,5.03035045,2131.7,2130.7,1.17332332]
[1770660562306,1.17266288,2132.0,2130.8,0.1024]
[1770660564292,4.69040311,2132.1,2130.9,1.17321319]
[1770660564511,9.72075356,2132.1,2130.9,1.17321319]
[1770660567089,5.03035045,2132.0,2130.8,1.17323583]
[1770660567483,4.69040311,2132.1,2130.8,1.17323583]
[1770660567985,4.69040311,2132.1,2130.9,0.001]
[1770660570393,9.72075356,2132.1,2130.9,0.001]
[1770660570809,9.72075356,2132.1,2130.9,1.17421319]
[1770660571999,3.277,2132.2,2130.9,6.45737577]
[1770660572312,5.94041854,2132.8,2131.4,5.28316258]
[1770660572313,1.17429645,2132.6,2131.4,5.28316258]
[1770660572508,0.002,2132.6,2131.5,5.28316258]
[1770660572718,0.002,2132.6,2131.6,1.17282792]
[1770660572891,0.002,2132.6,2131.6,6.4559905]
[1770660573095,0.002,2132.6,2131.7,0.2335703]
[1770660573492,0.002,2133.0,2132.0,5.38556258]
[1770660573729,1.17172853,2133.6,2132.3,5.28316258]
[1770660573928,6.20207898,2133.6,2132.2,0.1024]
[1770660574092,6.20207898,2133.6,2132.4,3.278]
[1770660574296,1.17172853,2133.6,2132.4,3.278]
[1770660574517,1.17172853,2133.6,2132.5,0.2335703]
[1770660574719,1.17172853,2133.6,2132.6,3.278]
[1770660574908,0.002,2133.7,2132.7,1.172223]
[1770660575216,0.002,2133.7,2132.7,4.450223]